Cogmind - Beta 15 @@@ ROGUE MODE // 2025.05.09 @ 20:36:09 Player: gorb Result: Destroyed by S-27 Virus with Autogun Performance ------------- Evolutions (4) 2000 Regions Visited (9) 1800 Robots Destroyed (28) 140 Value Destroyed (789) 789 Prototype IDs (2) 40 Alien Tech Used (0) 0 Bonus (277) 277 TOTAL SCORE: 5046 Bonus ------- Pacifist 200 Follower Combat Kills 77 Cogmind --------- Core Integrity 0/850 Matter 300/300 Energy 88/100 System Corruption 2% Temperature Cool (0) Movement Core (50) Location -6/Lower Caves Parts ------- > --- POWER (2) -------- (None) > --- PROPULSION (7) --- (None) > --- UTILITY (4) ------ (None) > --- WEAPON (2) ------- (None) > --- INVENTORY (5) ---- Cold Fusion Reactor Peak State ------------ > --- POWER ------------ Improved Deuterium Engine Fission Core > --- PROPULSION ------- Improved Gravmag System Improved Gravmag System Improved Gravmag System Combat Airjet VTOL Module VTOL Module Nuclear Pulse Thruster > --- UTILITY ---------- Advanced Terrain Scan Processor Microactuators ECM Suite Hacking Suite > --- WEAPON ----------- Plasma Cannon Katana > --- INVENTORY -------- Light Nuclear Core Reinforced Antimatter Reactor VTOL Module Nuclear Pulse Thruster Advanced ECM Suite [Rating: 59] Favorites ----------- Power Improved Deuterium Engine Engine Improved Deuterium Engine Power Core Light Nuclear Core Reactor Reinforced Antimatter Reactor Propulsion VTOL Module Wheel Compact Wheel Hover Unit Improved Gravmag System Flight Unit VTOL Module Utility Advanced Terrain Scan Processor Device ECM Suite Storage Small Storage Unit Processor Advanced Terrain Scan Processor Hackware Hacking Suite Protection Light Armor Plating Weapon Katana Energy Cannon Plasma Cannon Ballistic Gun Light Assault Rifle Ballistic Cannon Assault Cannon Launcher Rocket Launcher Slashing Weapon Katana Build | -11 -10 -9 -9 -8 -7 -7 -7 -6 -6 ------- Run | Yrd Mat Mat Min Mat Fac Was Fac Fac Low Slots Evolved 8 | . . 2 . 2 2 . . 2 . Power 1 | . . . . . 1 . . . . Propulsion 5 | . . 2 . . 1 . . 2 . Utility 2 | . . . . 2 . . . . . Weapon . | . . . . . . . . . . Parts Attached 58 | 6 5 2 3 15 9 . 10 8 . Power 10 | 1 . . . 2 3 . 3 1 . Engine 6 | 1 . . . 2 2 . 1 . . Core 3 | . . . . . 1 . 1 1 . Reactor 1 | . . . . . . . 1 . . Propulsion 26 | 2 4 2 . 7 4 . 1 6 . Treads . | . . . . . . . . . . Leg . | . . . . . . . . . . Wheel 2 | 2 . . . . . . . . . Hover 7 | . 2 . . 1 . . . 4 . Flight 17 | . 2 2 . 6 4 . 1 2 . Utility 14 | 1 1 . 3 2 2 . 4 1 . Device 7 | . . . . 2 1 . 3 1 . Storage 4 | 1 1 . 2 . . . . . . Processor 1 | . . . . . 1 . . . . Hackware 1 | . . . . . . . 1 . . Protection 1 | . . . 1 . . . . . . Artifact . | . . . . . . . . . . Weapon 8 | 2 . . . 4 . . 2 . . Energy Gun . | . . . . . . . . . . Energy Cannon 1 | . . . . . . . 1 . . Ballistic Gun 3 | 2 . . . 1 . . . . . Ballistic Cannon 2 | . . . . 2 . . . . . Launcher 1 | . . . . 1 . . . . . Special Weapon . | . . . . . . . . . . Impact Weapon . | . . . . . . . . . . Slashing Weapon 1 | . . . . . . . 1 . . Piercing Weapon . | . . . . . . . . . . Special Melee Weapon . | . . . . . . . . . . Unidentified Prototypes . | . . . . . . . . . . Corrupted Parts 1 | . . . . . . . 1 . . System Corruption 5 | . . . . . . . 5 . . Parts Lost 36 | . . . . 9 7 2 1 6 11 Power 6 | . . . . . 1 1 . 1 3 Propulsion 18 | . . . . 6 2 1 . 4 5 Utility 7 | . . . . 1 2 . 1 1 2 Weapon 5 | . . . . 2 2 . . . 1 Highest Loss Streak 6 | . . . . 5 6 2 1 4 5 To Critical Strikes 2 | . . . . . . 1 . . 1 Average Backups 4 | 1 4 7 7 6 2 3 3 4 1 Power 1 | . 1 1 1 . . . 1 2 1 Propulsion 2 | . 3 5 4 3 1 2 . 1 . Utility . | . . . . . . . 1 1 . Weapon . | . . 1 2 1 . . . . . Tool/Special . | . . . . . . . . . . Unused Backups 9 | . . 1 . 8 . . . . . Power 2 | . . 1 . 1 . . . . . Propulsion 2 | . . . . 2 . . . . . Utility . | . . . . . . . . . . Weapon 5 | . . . . 5 . . . . . Tool/Special . | . . . . . . . . . . Average Slot Usage (%) 71 | . 98 82 100 58 71 66 65 91 51 Engine 6 | . 14 11 11 6 8 14 3 3 2 Core 2 | . . . . . 3 . 4 7 1 Reactor 1 | . . . . . . . . . 3 Wheel 1 | . 16 . . . . . . . . Hover 8 | . 10 17 . . . . . 23 11 Flight 19 | . 1 10 44 23 35 36 34 18 6 Device 6 | . . . . 4 14 6 2 10 8 Storage 5 | . 26 22 15 5 . . . . . Processor 2 | . . . . . . 7 7 6 4 Hackware 2 | . . . . . . . 3 6 4 Protection 1 | . . . 6 5 . . . . . Energy Cannon 2 | . . . . . . . 5 6 2 Ballistic Gun 7 | . 28 22 22 10 3 . . . . Slashing Weapon 2 | . . . . . . . . 6 4 Peak Build Rating 59 | 6 7 9 10 21 35 26 33 59 52 Average Rating 24 | 2 6 7 9 10 25 24 25 51 30 On Entrance 17 | . 6 7 9 9 19 25 16 27 52 Naked Turns 78 | . . . . . . . . . 78 Heaviest Build 48 | 11 12 12 19 25 25 19 23 48 48 Greatest Support 42 | 32 32 16 16 24 29 28 20 42 32 Greatest Overweight (x) 8 | . 1 . 1 8 . . 1 4 1 Average Overweight (x) . | . . . . . . . . . . Largest Inventory Capacity 20 | 8 8 8 20 10 5 5 5 5 5 Average Capacity 6 | 6 8 8 9 7 5 5 5 5 5 Most Carried 9 | 5 8 8 9 9 5 5 5 5 2 Average Carried 4 | 1 5 7 7 6 2 3 3 4 1 Final Capacity 10 | 8 8 8 10 5 5 5 5 5 5 Final Carried 8 | 3 8 7 8 3 2 5 5 2 1 Class Distribution -------------------- 62% | Mutant 16% | Scavenger-Mutant 15% | Sprinter 5% | Scavenger-Sprinter Dominant Class ---------------- Mutant | -10/Materials Mutant | -9/Materials Scavenger-Mutant | -9/Mines Scavenger-Mutant | -8/Materials Sprinter | -7/Factory Sprinter | -7/Waste Sprinter | -7/Factory Mutant | -6/Factory Mutant | -6/Lower Caves Resources | -11 -10 -9 -9 -8 -7 -7 -7 -6 -6 ----------- Run | Yrd Mat Mat Min Mat Fac Was Fac Fac Low Matter Collected 1305 | 219 155 64 58 197 219 . 134 249 10 Remotely . | . . . . . . . . . . Salvage Created 983 | . . 64 . 300 48 . 134 345 92 Parts 59 | . . 12 . 16 6 . 4 16 5 Haulers Intercepted . | . . . . . . . . . . Recyclers Shooed . | . . . . . . . . . . Parts Field Recycled . | . . . . . . . . . . Retrieved Matter . | . . . . . . . . . . Parts Self-Destructed 5 | . . . . . . . . . 5 Prevented 1 | . . . . . . . . . 1 Kills | -11 -10 -9 -9 -8 -7 -7 -7 -6 -6 ------- Run | Yrd Mat Mat Min Mat Fac Was Fac Fac Low Combat Hostiles Destroyed 24 | . . 4 . 6 2 . . 9 3 Melee 12 | . . . . . . . . 9 3 Guns 9 | . . 4 . 4 1 . . . . Cannons 1 | . . . . . 1 . . . . AOE 2 | . . . . 2 . . . . . Classes Destroyed 7 | . . 1 . 3 . . 2 1 . Worker 2 | . . . . . . . 2 . . Recycler 1 | . . . . . . . 1 . . Watcher 1 | . . . . . . . . 1 . Swarmer 15 | . . 4 . . 2 . . 7 2 Grunt 4 | . . . . 2 . . . 1 1 Brawler 1 | . . . . 1 . . . . . Sentry 4 | . . . . 3 . . . 1 . Best Kill Streak 5 | . . 4 . 2 2 . 3 5 2 Combat Bots Only 5 | . . 4 . 2 2 . . 5 2 Max Kills in Single Turn 2 | . . 2 . 1 1 . 1 1 1 Gunslinging 1 | . . 1 . . . . . . . Exploded 1 | . . . . 1 . . . . . Melee 1 | . . . . . . . . 1 1 Uniques/NPCs Destroyed . | . . . . . . . . . . Combat | -11 -10 -9 -9 -8 -7 -7 -7 -6 -6 -------- Run | Yrd Mat Mat Min Mat Fac Was Fac Fac Low Hostile Shots Fired 375 | . . 18 . 94 86 1 . 72 104 Missed 149 | . . 3 . 37 43 . . 30 36 Hits 226 | . . 15 . 57 43 1 . 42 68 Melee 12 | . . . . 6 . 1 . . 5 Projectile 214 | . . 15 . 51 43 . . 42 63 Critical Strikes 11 | . . . . 5 . 1 . . 5 Damage Taken 3544 | . . 115 . 931 539 49 139 520 1251 Core 1278 | . . 10 . 203 50 43 110 88 774 Absorbed by Shields . | . . . . . . . . . . Core Remaining (%) 86 | 100 100 . 97 63 . . 71 . . Volleys Fired 46 | . 1 8 . 26 8 . 2 1 . Largest 2 | . 2 2 . 2 2 . 1 1 . Hottest 80 | . 40 40 . 40 62 . 80 80 . Shots Fired 75 | . 2 16 . 45 9 . 2 1 . Gun 64 | . 2 16 . 41 5 . . . . Cannon 9 | . . . . 2 4 . 2 1 . Launcher 2 | . . . . 2 . . . . . Special . | . . . . . . . . . . Kinetic 70 | . 2 16 . 43 9 . . . . Thermal 3 | . . . . . . . 2 1 . Explosive 2 | . . . . 2 . . . . . Electromagnetic . | . . . . . . . . . . Robot Hit Streak 7 | . . 3 . 7 2 . . 1 . Robot Miss Streak 6 | . . 2 . 3 6 . 4 . . Penetration Max . | . . . . . . . . . . Secondary Targets 1 | . . 1 . . . . . . . Max Gunslinging Chain 1 | . . 1 . . . . . . . Shots Hit Robots 81 | . . 10 . 28 2 . 3 25 13 Core Hits 35 | . . 4 . 13 2 . 1 12 3 Critical Kills . | . . . . . . . . . . Critical Parts Destroyed . | . . . . . . . . . . Critical Strikes 2 | . . . . . . . . 2 . Sever 2 | . . . . . . . . 2 . Melee Attacks 53 | . . . . . . . 3 31 19 Impact . | . . . . . . . . . . Slashing 53 | . . . . . . . 3 31 19 Piercing . | . . . . . . . . . . Sneak Attacks 5 | . . . . . . . 3 2 . Combat Hostiles 1 | . . . . . . . . 1 . Follow-up Attacks . | . . . . . . . . . . Damage Inflicted 2007 | . . 111 . 362 46 . 206 881 401 Guns 401 | . . 111 . 272 18 . . . . Cannons 81 | . . . . 28 28 . . 25 . Explosions 62 | . . . . 62 . . . . . Melee 1440 | . . . . . . . 206 856 378 Ramming 23 | . . . . . . . . . 23 Kinetic 457 | . . 111 . 300 46 . . . . Thermal 25 | . . . . . . . . 25 . Explosive 62 | . . . . 62 . . . . . Electromagnetic . | . . . . . . . . . . Impact . | . . . . . . . . . . Slashing 1440 | . . . . . . . 206 856 378 Piercing . | . . . . . . . . . . Highest Corruption 11 | . . . . 4 . 6 11 . 2 Average Corruption 6 | . . . . 4 . 6 10 . 2 Corruption Purged . | . . . . . . . . . . Corruption Blocked . | . . . . . . . . . . Effects 19 | . . . . 7 . 2 9 . 1 Message Errors 4 | . . . . 1 . 1 2 . . Matter Fused 3 | . . . . 1 . . 2 . . Heat Flow Errors 2 | . . . . 1 . . 1 . . Energy Discharges 7 | . . . . 4 . . 2 . 1 Data Loss (minor) 3 | . . . . . . 1 2 . . Overload Shots . | . . . . . . . . . . Overflow Damage 172 | . . . . . . . 79 41 52 Projectiles . | . . . . . . . . . . Explosions . | . . . . . . . . . . Melee 172 | . . . . . . . 79 41 52 Knockbacks . | . . . . . . . . . . Impact . | . . . . . . . . . . Kinetic . | . . . . . . . . . . Secondary . | . . . . . . . . . . Self-Inflicted Damage 10 | . . . . . . . . . 10 Shots . | . . . . . . . . . . Rammed 8 | . . . . . . . . . 8 Targets Rammed 8 | . . . . . . . . . 8 Kicked . | . . . . . . . . . . Crushed . | . . . . . . . . . . Highest Temperature 344 | . 4 . . 158 344 220 326 42 . Average Temperature 114 | . 3 . . 47 146 92 123 17 . Received Heat Transfer 819 | . . . . 315 18 . . 144 342 Effects 10 | . . . . . 8 . 2 . . Shutdowns 2 | . . . . . 1 . 1 . . Energy Bleed 2 | . . . . . 2 . . . . Interference 3 | . . . . . 3 . . . . Matter Decay 1 | . . . . . 1 . . . . Short Circuit 1 | . . . . . . . 1 . . Damage (minor) 1 | . . . . . 1 . . . . Siege Activations . | . . . . . . . . . . Martial Activations . | . . . . . . . . . . Shielding Activations . | . . . . . . . . . . Robots Disrupted . | . . . . . . . . . . Combat Hostiles . | . . . . . . . . . . Robots Corrupted . | . . . . . . . . . . Combat Hostiles . | . . . . . . . . . . Parts Fried . | . . . . . . . . . . Impact Corruptions . | . . . . . . . . . . Robots Melted . | . . . . . . . . . . Combat Hostiles . | . . . . . . . . . . Parts Melted . | . . . . . . . . . . Heat Transferred 50 | . . . . . . . . 50 . Parts Sabotaged . | . . . . . . . . . . Parts Stolen . | . . . . . . . . . . Parts Stripped . | . . . . . . . . . . Power Chain Reactions . | . . . . . . . . . . Alert | -11 -10 -9 -9 -8 -7 -7 -7 -6 -6 ------- Run | Yrd Mat Mat Min Mat Fac Was Fac Fac Low Maximum Alert Level . | . . . . . . . . . . Low Security (%) 100 | 100 100 100 100 100 100 100 100 100 . Level 1 . | . . . . . . . . . . Level 2 . | . . . . . . . . . . Level 3 . | . . . . . . . . . . Level 4 . | . . . . . . . . . . Level 5 . | . . . . . . . . . . High Security . | . . . . . . . . . . Max Security . | . . . . . . . . . . Peak Influence 125 | . . 80 82 69 125 40 20 90 . Initial 40 | . . . 28 4 8 40 . 4 . Average 18 | . . 26 36 14 37 17 3 24 . Influence Increases 1250 | . . 120 74 212 280 . 45 234 285 Destroy 0b10 Robot/C 540 | . . 80 60 120 40 . . 180 60 Destroy 0b10 Robot/NC 25 | . . . . 5 . . 15 5 . Destroy Leader 82 | . . 10 10 40 . . . 22 . Allied During Kill 4 | . . . 4 . . . . . . Successful Hack 12 | . . . . . . . . 12 . Destroy Structure 17 | . . . . 17 . . . . . Partial Spotted 120 | . . 30 . . 60 . 15 15 . Lose Combat Pursuer 450 | . . . . 30 180 . 15 . 225 Influence Decreases 1203 | . . 45 137 205 184 115 35 188 294 Entered New Map 168 | . . . 47 8 11 75 . 6 21 Time Decay 767 | . . 45 90 142 100 40 35 122 193 Lost Part 250 | . . . . 40 70 . . 60 80 Lost Ally 15 | . . . . 15 . . . . . Purge Threat 3 | . . . . . 3 . . . . Squads Dispatched 12 | . 4 . . . 2 . 2 4 . Investigation 4 | . 2 . . . . . 2 . . Extermination 2 | . . . . . 1 . . 1 . Reinforcement 6 | . 2 . . . 1 . . 3 . Assault . | . . . . . . . . . . Garrison . | . . . . . . . . . . Intercept . | . . . . . . . . . . Searches Triggered . | . . . . . . . . . . Construction Impeded . | . . . . . . . . . . Haulers Reinforced . | . . . . . . . . . . Active Scanning Responses . | . . . . . . . . . . Cargo Convoy Interrupts . | . . . . . . . . . . Stealth | -11 -10 -9 -9 -8 -7 -7 -7 -6 -6 --------- Run | Yrd Mat Mat Min Mat Fac Was Fac Fac Low Distress Signals 6 | . 3 . . . 2 . . 1 . Communications Jammed . | . . . . . . . . . . Distress Signals . | . . . . . . . . . . Times Spotted 120 | . 12 6 2 11 24 6 5 25 29 Peak Tracking Total 12 | . 5 4 3 3 12 6 2 8 5 Tactical Retreats 25 | . . . . 1 5 . 1 6 12 Traps | -11 -10 -9 -9 -8 -7 -7 -7 -6 -6 ------- Run | Yrd Mat Mat Min Mat Fac Was Fac Fac Low Traps Triggered 3 | . . . . . 1 . 2 . . Indirectly . | . . . . . . . . . . Trap Hack Attempts . | . . . . . . . . . . Triggered . | . . . . . . . . . . Disarmed . | . . . . . . . . . . Reprogrammed . | . . . . . . . . . . Reused . | . . . . . . . . . . Traps Extracted . | . . . . . . . . . . Installed . | . . . . . . . . . . Triggered . | . . . . . . . . . . Machines | -11 -10 -9 -9 -8 -7 -7 -7 -6 -6 ---------- Run | Yrd Mat Mat Min Mat Fac Was Fac Fac Low Machines Disabled . | . . . . . . . . . . Max in Single Turn . | . . . . . . . . . . Machines Repaired . | . . . . . . . . . . Machines Dismantled . | . . . . . . . . . . Machines Sabotaged . | . . . . . . . . . . Overloaded Fab Kills . | . . . . . . . . . . Hacking | -11 -10 -9 -9 -8 -7 -7 -7 -6 -6 --------- Run | Yrd Mat Mat Min Mat Fac Was Fac Fac Low Machines Accessed 9 | . . . . 1 4 . 2 2 . Terminals 7 | . . . . 1 4 . 1 1 . Fabricators 1 | . . . . . . . . 1 . Repair Stations . | . . . . . . . . . . Recycling Units . | . . . . . . . . . . Scanalyzers . | . . . . . . . . . . Garrison Access 1 | . . . . . . . 1 . . Total Hacks 17 | . . . . 1 6 . 7 3 . Successful 6 | . . . . 1 2 . 1 2 . Failed 11 | . . . . . 4 . 6 1 . Catastrophic 1 | . . . . . . . 1 . . Database Lockouts . | . . . . . . . . . . Manual 1 | . . . . . . . . 1 . Terminals 12 | . . . . 1 6 . 4 1 . Fabricators 2 | . . . . . . . . 2 . Repair Stations . | . . . . . . . . . . Recycling Units . | . . . . . . . . . . Scanalyzers . | . . . . . . . . . . Garrison Access 3 | . . . . . . . 3 . . Terminal Hacks 5 | . . . . 1 2 . 1 1 . Prototype ID Bank 1 | . . . . 1 . . . . . Open DSF 1 | . . . . . . . . 1 . Alert Level 1 | . . . . . . . 1 . . Unreport Threat 1 | . . . . . 1 . . . . Zone Layout 1 | . . . . . 1 . . . . Fabricator Hacks 1 | . . . . . . . . 1 . Build 1 | . . . . . . . . 1 . Repair Station Hacks . | . . . . . . . . . . Recycling Unit Hacks . | . . . . . . . . . . Scanalyzer . | . . . . . . . . . . Garrison Access Hacks . | . . . . . . . . . . Unauthorized Hacks . | . . . . . . . . . . Terminals . | . . . . . . . . . . Fabricators . | . . . . . . . . . . Repair Stations . | . . . . . . . . . . Recycling Units . | . . . . . . . . . . Scanalyzers . | . . . . . . . . . . Garrison Access . | . . . . . . . . . . Data Cores Recovered . | . . . . . . . . . . Used . | . . . . . . . . . . Hacking Detections 6 | . . . . 1 1 . 2 2 . Full Trace Events 2 | . . . . . . . 2 . . Feedback Events . | . . . . . . . . . . Feedback Blocked . | . . . . . . . . . . Robot Schematics Acquired . | . . . . . . . . . . Robots Built . | . . . . . . . . . . Authchips . | . . . . . . . . . . Time . | . . . . . . . . . . Total Robot Build Rating . | . . . . . . . . . . Part Schematics Acquired . | . . . . . . . . . . Parts Built 2 | . . . . . . . . 2 . Authchips . | . . . . . . . . . . Time 47 | . . . . . . . . 47 . Total Part Build Rating 10 | . . . . . . . . 10 . Parts Repaired . | . . . . . . . . . . Time . | . . . . . . . . . . Parts Recycled . | . . . . . . . . . . Recycled Matter . | . . . . . . . . . . Retrieved Matter . | . . . . . . . . . . Retrieved Components . | . . . . . . . . . . Parts Scanalyzed . | . . . . . . . . . . Part Schematics Acquired . | . . . . . . . . . . Parts Damaged . | . . . . . . . . . . Bothacking | -11 -10 -9 -9 -8 -7 -7 -7 -6 -6 ------------ Run | Yrd Mat Mat Min Mat Fac Was Fac Fac Low Used RIF Installer . | . . . . . . . . . . Robots Hacked . | . . . . . . . . . . Non-combat . | . . . . . . . . . . Combat . | . . . . . . . . . . Robot Hacks Applied . | . . . . . . . . . . Relay Couplers Released . | . . . . . . . . . . Fabnet Peak Effective % . | . . . . . . . . . . Robots Rewired . | . . . . . . . . . . Allies Hacked . | . . . . . . . . . . Hacks Repelled . | . . . . . . . . . . Allies | -11 -10 -9 -9 -8 -7 -7 -7 -6 -6 -------- Run | Yrd Mat Mat Min Mat Fac Was Fac Fac Low Total Allies 3 | . . . 3 . . . . . . Largest Group 3 | . . . 3 3 . . . . . Highest-Rated Group 80 | . . . 80 80 . . . . . Highest-Rated Ally 31 | . . . 31 31 . . . . . Total Orders . | . . . . . . . . . . Ally Attacks 19 | . . . 5 14 . . . . . Total Damage 268 | . . . 81 187 . . . . . Kills 4 | . . . 3 1 . . . . . Allies Corrupted . | . . . . . . . . . . Allies Melted . | . . . . . . . . . . Intel | -11 -10 -9 -9 -8 -7 -7 -7 -6 -6 ------- Run | Yrd Mat Mat Min Mat Fac Was Fac Fac Low Active Infowar (turns) 814 | . . . . . . . 54 442 318 Cloaking 47 | . . . . . . . 47 . . ECM 768 | . . . . . . . 8 442 318 Robot Analysis Total . | . . . . . . . . . . Derelict Logs Recovered 4 | . . . 1 . . . . . 3 Drone Launches . | . . . . . . . . . . Drone Recoveries . | . . . . . . . . . . Exploration | -11 -10 -9 -9 -8 -7 -7 -7 -6 -6 ------------- Run | Yrd Mat Mat Min Mat Fac Was Fac Fac Low Turns Passed 3021 | 68 231 136 195 599 210 109 220 546 707 Spaces Moved 4050 | 86 192 222 177 529 688 272 555 654 675 Core 507 | 65 . . . 161 . . . . 281 Treads . | . . . . . . . . . . Legs . | . . . . . . . . . . Wheels 117 | 21 96 . . . . . . . . Hover 1151 | . 92 133 . . . . . 532 394 Flight 2275 | . 4 89 177 368 688 272 555 122 . Fastest Speed 23 | 50 56 31 31 26 23 24 23 26 50 Average Speed 54 | 62 79 45 63 82 24 24 29 50 94 Slowest Speed 450 | 100 117 56 111 450 30 29 109 360 126 Overloaded Moves . | . . . . . . . . . . Propulsion Burnouts . | . . . . . . . . . . Robots Hopped 18 | . . . 1 5 7 . 5 . . Potential Cave-ins . | . . . . . . . . . . Cave-ins Triggered . | . . . . . . . . . . Exploration Rate (%) 34 | 5 35 14 40 31 28 80 17 16 75 Regions Visited 9 Branch Regions 2 Pre-discovered Areas . | . . . . . . . . . . Known Exits Taken . | . . . . . . . . . . Unknown Exits Taken 7 | 1 1 1 1 1 . . 1 1 . Scrap Searched 3 | . . . 1 . . . . . 2 Spaces Dug . | . . . . . . . . . . Terrain Destroyed 24 | . . . . 24 . . . . . Melee . | . . . . . . . . . . Projectile . | . . . . . . . . . . AOE 24 | . . . . 24 . . . . . Terrain Rammed . | . . . . . . . . . . Walls Destroyed . | . . . . . . . . . . Machines Disabled . | . . . . . . . . . . Actions | -11 -10 -9 -9 -8 -7 -7 -7 -6 -6 --------- Run | Yrd Mat Mat Min Mat Fac Was Fac Fac Low Total 4684 | 100 267 242 258 646 712 312 603 826 718 Wait 366 | . 62 . 72 53 1 38 13 112 15 Move 4008 | 85 191 221 174 519 675 271 544 653 675 Hop 16 | . . . 1 4 6 . 5 . . Pick Up 55 | 9 6 2 3 12 8 3 8 4 . Fast Attach 21 | . . 2 1 9 . . 4 5 . Attach 50 | 6 2 4 . 7 9 . 13 8 1 Detach 13 | . 1 2 . 2 1 . 6 1 . Swap 20 | . 4 . 3 2 3 . 2 6 . Drop 28 | . . 3 4 12 1 . 3 5 . Fire 46 | . 1 8 . 26 8 . 2 1 . Melee 53 | . . . . . . . 3 31 19 Ram 8 | . . . . . . . . . 8 Kick . | . . . . . . . . . . Crush . | . . . . . . . . . . Escape Stasis . | . . . . . . . . . . Rewire . | . . . . . . . . . . Trap . | . . . . . . . . . . Miscellaneous . | . . . . . . . . . . Route ------- -11/Scrapyard -10/Materials (discovered 2 exits: [*Mat] / [*Min]) -9/Materials -9/Mines -8/Materials -7/Factory -7/Waste -7/Factory -6/Factory -6/Lower Caves History --------- Turn | Location | Event 3 | -11/Scrapyard | Discovered new exit (range 16) 69 | -11/Scrapyard | Entered Materials 70 | -10/Materials | Met a group of wandering Federalists 159 | -10/Materials | Discovered new exit (range 9) 182 | -10/Materials | Discovered new exit (range 13) 300 | -10/Materials | Entered another Materials area 300 | -9/Materials | Evolved 2 slots: Propulsion x2 330 | -9/Materials | Build established: Mutant 432 | -9/Materials | Discovered new exit (range 14) 436 | -9/Materials | Entered Mines 439 | -9/Mines | Learned Materials stockpile data 441 | -9/Mines | Met a Derelict bent on vengeance 442 | -9/Mines | Received a Mining Laser from a helpful Derelict 513 | -9/Mines | Discovered new exit (range 8) 631 | -9/Mines | Entered Materials 631 | -8/Materials | Accompanied by 3 allies 631 | -8/Materials | Evolved 2 slots: Utility x2 636 | -8/Materials | Led the pair of lost Derelicts to an unsafe place 813 | -8/Materials | Build established: Scavenger-Mutant 975 | -8/Materials | Released all parts (3) 1003 | -8/Materials | Lost 5 parts (3n1u1w) 1199 | -8/Materials | Discovered new exit (range 15) 1230 | -8/Materials | Entered Factory 1230 | -7/Factory | Evolved 2 slots: Power x1, Propulsion x1 1373 | -7/Factory | Lost 6 parts (1p1n2u2w) 1440 | -7/Factory | Sucked down chute 1440 | -7/Factory | Entered Waste 1455 | -7/Waste | EMP discharged 1458 | -7/Waste | Spotted C-40 Crusher 1460 | -7/Waste | Spotted C-40 Crusher 1462 | -7/Waste | Spotted C-40 Crusher 1480 | -7/Waste | Spotted C-40 Crusher 1507 | -7/Waste | Build established: Sprinter 1507 | -7/Waste | Spotted C-40 Crusher 1512 | -7/Waste | Spotted C-40 Crusher 1533 | -7/Waste | Crushed by Compactor (1 part destroyed, 2 dropped) 1546 | -7/Waste | Discovered new exit (range 11) 1549 | -7/Waste | Entered Factory 1561 | -7/Factory | System corruption reached 10% 1766 | -7/Factory | Discovered new exit (range 12) 1769 | -7/Factory | Entered another Factory area 1769 | -6/Factory | Evolved 2 slots: Propulsion x2 1980 | -6/Factory | Fabricated Nuclear Pulse Thruster (x2) 2151 | -6/Factory | Build established: Mutant 2278 | -6/Factory | Lost 4 parts (1p2n1u) 2302 | -6/Factory | Discovered new exit (range 11) 2315 | -6/Factory | Entered Lower Caves 2564 | -6/Lower Caves | Learned Factory emergency access door positions 2598 | -6/Lower Caves | Attracted the attention of an 0b10 base 2660 | -6/Lower Caves | Lost 4 parts (1p2n1w) 2793 | -6/Lower Caves | Core integrity fell below 50% 2809 | -6/Lower Caves | Released all parts (1) 2822 | -6/Lower Caves | Learned Factory stockpile data 2830 | -6/Lower Caves | Lost 5 parts (1p2n2u) 2973 | -6/Lower Caves | Core integrity fell below 20% 2995 | -6/Lower Caves | Learned 12 Factory zone layouts 3022 | -6/Lower Caves | Destroyed by S-27 Virus with Autogun Last Messages --------------- Imp. Gravmag System destroyed. ECM Suite destroyed. Cmb. Airjet destroyed. Corrupted Carbon-fiber Leg self-destruct mechanism malfunctions. Adv. Terrain Scan Processor severed. Katana severed. Slammed into L-41 Fighter. Released Adv. ECM Suite. Slammed into G-50 Soldier. Acquired derelict log, extracted data. Data stored: Factory stockpile data. Acquired 10 matter. Slammed into B-48 Gladiator. Destabilizing: System corrupted (+2). Lgt. Nuclear Core destroyed. Critical hit (Burn: +37). Acquired derelict log, extracted data. Data stored: Factory zone layouts (x12). System corrupted: Energy discharge (-26). Map ----- +----------------------------------------------------+ | ?????????????????????????????????????????????????? | | ?????????????????????????????????????????????????? | | ?????????????????????????????????????????????????? | | ?????????????????????????????????????????#???????? | | ???????????????????????????????????????? ???????? | | ???????????????????????????????????????? ??????? | | ????????????????????????????????????????# #??????? | | ????????????????????????????????????????# #??????? | | ???????????????????????????????????????## #??????? | | ??????????????????????????????????????## ##?????? | | ????????????????? #####?????????????# #####?? | | ????????????????? ??????###????# ##? | | ???????????????? ?????## ##??## #? | | ????????????????? ?????# ##?# #? | | ?????????????????? ?????# #### ## | | ???????????????????# ????## ### # | | ????????????????????# ????# ## | | ?????????????????????# ##?## | | ??????????????????????# ### ### | | ???????????????????????# ##s #?# | | ????????????????????????# ss ### ## | | ????????????????????????# ### ### | | ???????????????????????## s #?## ######?# | | ??????????????????????## #??## ##??????# | | ??????????????????????# ##???####???????# | | ??????????????????????## @### #???????????????? | | ???????????????????????# #?# #???????????????? | | ???????????????????????# #?# #???????????????? | | ???????????????????????# ##? #???????????????? | | ???????????????????????##???# ##???????????????? | | ????????????????????????????#####????????????????? | | ?????????????????????????????????????????????????? | | ?????????????????????????????????????????????????? | | ?????????????????????????????????????????????????? | | ?????????????????????????????????????????????????? | | ?????????????????????????????????????????????????? | | ?????????????????????????????????????????????????? | | ?????????????????????????????????????????????????? | | ?????????????????????????????????????????????????? | | ?????????????????????????????????????????????????? | | ?????????????????????????????????????????????????? | | ?????????????????????????????????????????????????? | | ?????????????????????????????????????????????????? | | ?????????????????????????????????????????????????? | | ?????????????????????????????????????????????????? | | ?????????????????????????????????????????????????? | | ?????????????????????????????????????????????????? | | ?????????????????????????????????????????????????? | | ?????????????????????????????????????????????????? | | ?????????????????????????????????????????????????? | +----------------------------------------------------+ Best States ------------- Heat Dissipation 37 Energy Generation 32 Energy Capacity 515 Matter Stores 350 Matter Capacity 350 Sight Range 16 Terrain Scan Density 210 ECM Strength 3 Cloak Strength 2 Additional Mass Support 6 Armor Coverage 150 Melee Speed Boost 20 Evasion (%) 72 Offensive Hacking 10 Item Schematics ----------------- None Robot Schematics ------------------ None Fabricated ------------ Nuclear Pulse Thruster | x2 | -6/Factory | Preloaded Repaired ---------- Nothing Alien Tech Used ----------------- None Achievements -------------- Can't Catch Me Challenges ------------ None Game ------ Seed MiniTransdimensionalMatter Manual? 0 Play Time 01:14:06 Cumulative 25.9 hours Start 2025.05.08 @ 21:24:21 End 2025.05.09 @ 20:36:09 Sessions 3 Manual Loads 0 Difficulty Rogue Special Mode None Game No. 36 Rogue 34 Adventurer 0 Explorer 2 Win Type - Total 0 Types 0/0/0/0/0/0/0/0/0/0 Lore% 10 Gallery% 20 Achievement% 20 Wizard Run 0 Options --------- Layout 1 ASCII 0 Keyboard 0 Movement Mouse Keybinds 0 Fullscreen 1 Font 24/Smallcaps Map View 50x35 Zoom Use 0% Tactical HUD 0 Map Filters NONE Filters NONE Steam 1 RUN: 643732c1-8e17-40b6-8dfb-743a9babf536